Workbook

Sheet Instructions
B2: HOW TO USE THE DYNAMIC TOTAL COST OF OWNERSHIP DASHBOARD
B4: All cells highlighted Green are Input cells. Values can only be edited in these cells to observe the dynamic changes in the dashboard on the right.
B6: All cells highlighted Gray are Fixed cells. These values cannot be edited.
B9: CELL NAME | E9: FUNCTION | F9: ACTION REQUIRED
B10: Vehicle Holding Period (Year) | E10: Editable | F10: Use the drop down menu on Cell C5 to choose the Vehicle holding period from 1 to 10 years
B11: Daily Distance Travelled (km) | E11: Editable | F11: Use the arrows on the right to increase/decrease to input Daily Distance Travelled in km
B12: Daily Distance Travelled (mi) | E12: Fixed
B13: Annual Distance Travelled (km) | E13: Fixed
B14: Annual Distance Travelled (mi) | E14: Fixed
B16: Vehicle Purchase Cost | E16: Editable | F16: Add number values to input the purchase cost of a Car
B17: Tax | E17: Editable | F17: Add number values to input Tax levied on the Car
B18: Annual Insurance Cost | E18: Editable | F18: Add number values to input Annual Insurance cost of the Car
B19: Financial Incentive | E19: Editable | F19: Add number values to input Total incentives including FAME subsidy & other miscellaneous incentives
B21: Discount Rate | E21: Editable | F21: Add percentage values to input the present value of future cash flows at the end of holding period
B22: Resale Rate | E22: Editable | F22: Add percentage values to input the resale value of the Car at the end of holding period
B24: Terms of Payment | E24: Editable | F24: Add number values to input the Total number of years of loan repayment
B25: Interest Rate | E25: Editable | F25: Add percentage values to input prevailing interest on Car Loans
B26: Equity | E26: Editable | F26: Add percentage values to input initial equity payment made for the purchase of the Car
B27: Monthly EMI | E27: Fixed
B28: Charging Infrastructure Cost | E28: Editable | F28: Add number values to input the Total cost of Charging Infrastructure
B30: Staff cost per Month | E30: Editable | F30: Add number values to input Total Staff cost incurred in a month
B31: Lithium-Ion Battery Cost | E31: Editable | F31: Add number values to input prevailing cost of Li-Ion battery in USD per kWh
B33: Fuel Cost | E33: Editable | F33: Add number values to input Total cost per unit of Fuel (in associated fuel units)
B34: Capacity of Battery | E34: Editable | F34: Add number values to input capacity of battery for Electric Car in kWh
B35: Number of Battery Replacements | E35: Editable | F35: Add number values to input total number of battery replacements for Electric Car
B36: Mileage | E36: Editable | F36: Add number values to input mileage of different models of Cars
B37: Annual Maintenance Cost | E37: Editable | F37: Add number values to input the Annual Maintenance cost of a Car
B40: NOTES
B42: 1. For more details regarding Methodology and TCO calculations, please refer to the research paper. Total Cost of Ownership Analysis of the Impact of Vehicle Usage on the Economic Viability of Electric Vehicles in India, P. Kumar and S. Chakrabarty Transport. Res. Rec., 2020 (1-10)

Sheet Cars TCO Dashboard
AO1: YEAR 10 | AP1: TCO | AV1: DYNAMIC | AW1: TCO
AO2: e-Car | AP2: =TCO_1!C11 -> 5.950788588 | AV2: e-Car | AW2: =VLOOKUP($C$5,$AU$11:$AY$21,2,0) -> 8.837456039
AO3: CNG-Car | AP3: =TCO_1!D11 -> 5.237087934 | AV3: CNG-Car | AW3: =VLOOKUP($C$5,$AU$11:$AY$21,3,0) -> 7.902867191
AO4: Petrol-Car | AP4: =TCO_1!E11 -> 7.07238754 | AV4: Petrol-Car | AW4: =VLOOKUP($C$5,$AU$11:$AY$21,4,0) -> 10.09623378
B5: Vehicle Holding Period (Year) | C5: 5 | D5: Use Drop down to choose Holding Period | AO5: Diesel-Car | AP5: =TCO_1!F11 -> 7.283069401 | AV5: Diesel-Car | AW5: =VLOOKUP($C$5,$AU$11:$AY$21,5,0) -> 10.74880561
B7: Daily Distance Travelled (km) | C7: 110 | E7: (Use Arrows to input Distance)
B8: Daily Distance Travelled (mi) | C8: =C7*0.621371 -> 68.35081
B10: Annual Distance Travelled (km) | C10: =C7*365 -> 40150
B11: Annual Distance Travelled (mi) | C11: =C8*365 -> 24948.04565 | AO11: Operational Years | AP11: e-Car | AQ11: CNG-Car | AR11: Petrol-Car | AS11: Diesel-Car | AV11: e-Car | AW11: CNG-Car | AX11: Petrol-Car | AY11: Diesel-Car
AO12: Year 1 | AP12: =TCO_1!C31 -> 31.36321675 | AQ12: =TCO_1!C34 -> 28.12247147 | AR12: =TCO_1!C37 -> 29.83185582 | AS12: =TCO_1!C40 -> 35.69475689 | AU12: 1 | AV12: =IF($C$5=AU12,AP12:AS12,) -> 0
AO13: Year 2 | AP13: =TCO_1!D31 -> 17.32254035 | AQ13: =TCO_1!D34 -> 15.55092706 | AR13: =TCO_1!D37 -> 17.74020129 | AS13: =TCO_1!D40 -> 20.25962177 | AU13: 2 | AV13: =IF($C$5=AU13,AP13:AS13,) -> 0
AO14: Year 3 | AP14: =TCO_1!E31 -> 12.62356141 | AQ14: =TCO_1!E34 -> 11.32862189 | AR14: =TCO_1!E37 -> 13.59408758 | AS14: =TCO_1!E40 -> 15.03992345 | AU14: 3 | AV14: =IF($C$5=AU14,AP14:AS14,) -> 0
C15: INR | AO15: Year 4 | AP15: =TCO_1!F31 -> 10.26219803 | AQ15: =TCO_1!F34 -> 9.196609498 | AR15: =TCO_1!F37 -> 11.44301351 | AS15: =TCO_1!F40 -> 12.3801717 | AU15: 4 | AV15: =IF($C$5=AU15,AP15:AS15,) -> 0
AO16: Year 5 | AP16: =TCO_1!G31 -> 8.837456039 | AQ16: =TCO_1!G34 -> 7.902867191 | AR16: =TCO_1!G37 -> 10.09623378 | AS16: =TCO_1!G40 -> 10.74880561 | AU16: 5 | AV16: =IF($C$5=AU16,AP16:AS16,) -> 8.837456039 | AW16: 7.902867191 | AX16: 10.09623378 | AY16: 10.74880561
AO17: Year 6 | AP17: =TCO_1!H31 -> 7.882201847 | AQ17: =TCO_1!H34 -> 7.029876486 | AR17: =TCO_1!H37 -> 9.156343864 | AS17: =TCO_1!H40 -> 9.634953295 | AU17: 6 | AV17: =IF($C$5=AU17,AP17:AS17,) -> 0
AO18: Year 7 | AP18: =TCO_1!I31 -> 7.196129089 | AQ18: =TCO_1!I34 -> 6.398561936 | AR18: =TCO_1!I37 -> 8.452645653 | AS18: =TCO_1!I40 -> 8.819395018 | AU18: 7 | AV18: =IF($C$5=AU18,AP18:AS18,) -> 0
B19: MODEL | C19: e-Car | D19: CNG - Car | E19: Petrol - Car | F19: Diesel - Car | AO19: Year 8 | AP19: =TCO_1!J31 -> 6.67899958 | AQ19: =TCO_1!J34 -> 5.919274859 | AR19: =TCO_1!J37 -> 7.899485886 | AS19: =TCO_1!J40 -> 8.192301894 | AU19: 8 | AV19: =IF($C$5=AU19,AP19:AS19,) -> 0
B20: =VLOOKUP($C$15,Currency!$B$17:$C$19,2,0) -> Vehicle Purchase Cost (₹) | C20: 1158000 | D20: 728000 | E20: 704800 | F20: 910700 | AO20: Year 9 | AP20: =TCO_1!K31 -> 6.275056385 | AQ20: =TCO_1!K34 -> 5.542120441 | AR20: =TCO_1!K37 -> 7.4490333 | AS20: =TCO_1!K40 -> 7.692480507 | AU20: 9 | AV20: =IF($C$5=AU20,AP20:AS20,) -> 0
B21: =VLOOKUP($C$15,Currency!$B$21:$C$23,2,0) -> Tax (₹) | C21: 66241 | D21: 80636 | E21: 70420 | F21: 80736 | AO21: Year 10 | AP21: =TCO_1!L31 -> 5.950788588 | AQ21: =TCO_1!L34 -> 5.237087934 | AR21: =TCO_1!L37 -> 7.07238754 | AS21: =TCO_1!L40 -> 7.283069401 | AU21: 10 | AV21: =IF($C$5=AU21,AP21:AS21,) -> 0
B22: =VLOOKUP($C$15,Currency!$B$25:$C$27,2,0) -> Insurance cost (₹) | C22: 40706 | D22: 36139 | E22: 24000 | F22: 35676
B23: =VLOOKUP($C$15,Currency!$B$29:$C$31,2,0) -> Financial Incentive (₹) | C23: 212000
B25: Discount Rate (%) | C25: 0.1 | D25: 0.1 | E25: 0.1 | F25: 0.1
B26: Resale Rate (%) | C26: 0.2 | D26: 0.1 | E26: 0.1 | F26: 0.1
B28: =VLOOKUP($C$15,Currency!$B$45:$C$47,2,0) -> Financing Component (₹)
B29: Term of Payment (Years) | C29: 7 | D29: 7 | E29: 7 | F29: 7
B30: Interest Rate (%) | C30: 0.1 | D30: 0.085 | E30: 0.085 | F30: 0.085
B31: Equity (%) | C31: 0.1 | D31: 0.1 | E31: 0.1 | F31: 0.1
B32: =VLOOKUP($C$15,Currency!$B$49:$C$51,2,0) -> Monthly EMI (₹) | C32: =Financing!B12 -> 14184.92665 | D32: =Financing!C12 -> 10415.06526 | E32: =Financing!D12 -> 10083.15659 | F32: =Financing!E12 -> 13028.84606
B33: =VLOOKUP($C$15,Currency!$B$53:$C$55,2,0) -> Charging Infrastructure Cost (₹) | C33: 0
AO38: Cost Components | AP38: e-Car | AQ38: CNG-Car | AR38: Petrol-Car | AS38: Diesel-Car
AO39: Fixed | AP39: =Summary!B19 -> 1393080.839 | AQ39: =Summary!C19 -> 1064440.482 | AR39: =Summary!D19 -> 1011885.153 | AS39: =Summary!E19 -> 1301905.069
B40: =VLOOKUP($C$15,Currency!$B$33:$C$35,2,0) -> Staff Cost per Month (₹) | C40: 0 | AO40: Maintenance | AP40: =Summary!B23 -> 2600 | AQ40: =Summary!C23 -> 4699 | AR40: =Summary!D23 -> 4699 | AS40: =Summary!E23 -> 5261
B41: Lithium-Ion Battery Cost (USD/kWh) | C41: 137
AO42: Battery Replacement | AP42: =Summary!B24 -> 22002.2 | AQ42: =Summary!C24 -> 0 | AR42: =Summary!D24 -> 0 | AS42: =Summary!E24 -> 0
B43: MODEL | C43: e-Car | D43: CNG - Car | E43: Petrol - Car | F43: Diesel - Car | AO43: Fuel | AP43: =Summary!B25 -> 28044.23749 | AQ43: =Summary!C25 -> 66445.42254 | AR43: =Summary!D25 -> 199751.2438 | AS43: =Summary!E25 -> 139102.3622
B44: =VLOOKUP($C$15,Currency!$B$37:$C$39,2,0) -> Fuel cost (₹/kWh; ₹/kg; ₹/L) | C44: 6 | D44: 47 | E44: 100 | F44: 88
B45: Capacity of Battery (kWh) | C45: 22
B46: Number of Battery Replacements | C46: 1
B47: Mileage (km/kWh; km/Kg; km/L) | C47: 8.59 | D47: 28.4 | E47: 20.1 | F47: 25.4
B48: =VLOOKUP($C$15,Currency!$B$41:$C$43,2,0) -> Annual Maintenance Cost (₹) | C48: 2600 | D48: 4699 | E48: 4699 | F48: 5261 | AP48: e-Car | AQ48: CNG-Car | AR48: Petrol-Car | AS48: Diesel-Car
AO49: Fixed Cost | AP49: =AP58/AP60 -> 0.8646057537 | AQ49: =AQ58/AQ60 -> 0.7920989252 | AR49: 0.557587566 | AS49: 0.6966470087
AO50: Variable Cost | AP50: =AP59/AP60 -> 0.1353942463 | AQ50: =AQ59/AQ60 -> 0.2079010748 | AR50: 0.442412434 | AS50: 0.3033529913
B53: WORK NOTES
AP54: =SUM(AP49:AP53) -> 1 | AQ54: =SUM(AQ49:AQ53) -> 1 | AR54: =SUM(AR49:AR53) -> 1 | AS54: =SUM(AS49:AS53) -> 1
B55: 1. Financial Incentives can be added by referencing Department of Heavy Industry's website
B56: https://fame2.heavyindustry.gov.in/ModelUnderFame.aspx
AP57: e-Car | AQ57: CNG-Car | AR57: Petrol-Car | AS57: Diesel-Car
B58: 2. Additional Features like Sensitivity Analysis will be added in the next iteration of the model | AO58: Total Fixed Cost | AP58: =TCO_1!C10/TCO_1!C9 -> 5.145086052 | AQ58: =TCO_1!D10/TCO_1!D9 -> 4.148291723 | AR58: =TCO_1!E10/TCO_1!E9 -> 3.943475354 | AS58: =TCO_1!F10/TCO_1!F9 -> 5.073728513
AO59: Total Variable Cost | AP59: =TCO_1!L22/TCO_1!C9 -> 0.8057025355 | AQ59: =TCO_1!L23/TCO_1!D9 -> 1.08879621 | AR59: =TCO_1!L24/TCO_1!E9 -> 3.128912186 | AS59: =TCO_1!L25/TCO_1!F9 -> 2.209340888
AO60: Total TCO | AP60: =SUM(AP58:AP59) -> 5.950788588 | AQ60: =SUM(AQ58:AQ59) -> 5.237087934 | AR60: =SUM(AR58:AR59) -> 7.07238754 | AS60: =SUM(AS58:AS59) -> 7.283069401

Sheet Summary
A1: TRAVEL DETAILS
A2: Number of Vehicle | B2: 1
A3: Life of Vehicle (yrs) | B3: 10
A4: Annual drive distance (KM) | B4: ='Cars TCO Dashboard'!C10 -> 40150
A5: Total Distance Travel (KM) | B5: =B3*B4 -> 401500
A6: LIB Cost (USD/kWh) | B6: ='Cars TCO Dashboard'!C41 -> 137
A7: USD to INR | B7: 73
A8: VRLA Cost (USD/kWh) | B8: 100
A9: General Inputs | B9: e-Car | C9: CNG - Car | D9: Petrol - Car | E9: Diesel - Car
A10: Discount rate (%) | B10: ='Cars TCO Dashboard'!C25 -> 0.1 | C10: ='Cars TCO Dashboard'!D25 -> 0.1 | D10: ='Cars TCO Dashboard'!E25 -> 0.1 | E10: ='Cars TCO Dashboard'!F25 -> 0.1
A11: Resale rate (%) | B11: ='Cars TCO Dashboard'!C26 -> 0.2 | C11: ='Cars TCO Dashboard'!D26 -> 0.1 | D11: ='Cars TCO Dashboard'!E26 -> 0.1 | E11: ='Cars TCO Dashboard'!F26 -> 0.1
A13: Capital Cost | B13: e-Car | C13: CNG - Car | D13: Petrol - Car | E13: Diesel - Car
A14: Total Vehicle Cost (₹) | B14: ='Capital Cost'!B8 -> 1605080.839 | C14: ='Capital Cost'!C8 -> 1064440.482 | D14: ='Capital Cost'!D8 -> 1011885.153 | E14: ='Capital Cost'!E8 -> 1301905.069
A15: Resale Value (₹) | B15: =B14*B10 -> 160508.0839 | C15: =C14*C11 -> 106444.0482 | D15: =D14*D11 -> 101188.5153 | E15: =E14*E11 -> 130190.5069
A16: Total Charging Infrastructure Cost (₹) | B16: ='Cars TCO Dashboard'!C33 -> 0 | C16: ='Capital Cost'!C19/B2 -> 0 | D16: ='Capital Cost'!D19/B2 -> 0 | E16: ='Capital Cost'!E19/B2 -> 0
A17: Misc. Cost (₹) | B17: 0 | C17: 0 | D17: 0 | E17: 0
A18: Financial Incentive (₹) | B18: ='Cars TCO Dashboard'!C23 -> 212000 | C18: ='Capital Cost'!C6 -> 0 | D18: ='Capital Cost'!D6 -> 0 | E18: ='Capital Cost'!E6 -> 0
A19: Total Capital Cost (₹) excl. Resale Value | B19: =(B14+B16+B17)-B18 -> 1393080.839 | C19: =(C14+C16+C17) -> 1064440.482 | D19: =(D14+D16+D17) -> 1011885.153 | E19: =(E14+E16+E17) -> 1301905.069
A21: Annual Operational Cost | B21: e-Car | C21: CNG - Car | D21: Petrol - Car | E21: Diesel - Car
A22: Staff Cost (₹) | B22: ='Operational Cost'!B4 -> 0 | C22: ='Operational Cost'!C4 -> 0 | D22: ='Operational Cost'!D4 -> 0 | E22: ='Operational Cost'!E4 -> 0
A23: Maintenance Cost (₹) | B23: ='Operational Cost'!B18 -> 2600 | C23: ='Operational Cost'!C18 -> 4699 | D23: ='Operational Cost'!D18 -> 4699 | E23: ='Operational Cost'!E18 -> 5261
A24: Battery Replacement Cost (₹)* | B24: ='Operational Cost'!B27/B3 -> 22002.2 | C24: ='Operational Cost'!C27/B3 -> 0 | D24: ='Operational Cost'!D27/B3 -> 0
A25: Average Fuel Cost (₹) | B25: ='Operational Cost'!B11 -> 28044.23749 | C25: ='Operational Cost'!C11 -> 66445.42254 | D25: ='Operational Cost'!D11 -> 199751.2438 | E25: ='Operational Cost'!E11 -> 139102.3622
A26: Misc. Cost (₹) | B26: 0 | C26: 0 | D26: 0 | E26: 0
A27: Total Operational Cost (₹) | B27: =(SUM(B22:B26)) -> 52646.43749 | C27: =(SUM(C22:C26)) -> 71144.42254 | D27: =(SUM(D22:D26)) -> 204450.2438 | E27: =(SUM(E22:E26)) -> 144363.3622
A29: Total Operational Cost for life of Car | B29: =B27*$B$3 -> 526464.3749 | C29: =C27*$B$3 -> 711444.2254 | D29: =D27*$B$3 -> 2044502.438 | E29: =E27*$B$3 -> 1443633.622
A30: Average TCO | B30: =TCO_1!C11 -> 5.950788588 | C30: =TCO_1!D11 -> 5.237087934 | D30: =TCO_1!E11 -> 7.07238754 | E30: =TCO_1!F11 -> 7.283069401

Sheet Currency (hidden)
B2: CURRENCY CONVERSION | G2: WEIGHT CONVERSION
B4: USD | C4: INR | D4: Conversion | G4: gal | H4: L
B5: 1 | C5: 74 | D5: =B5*C5 -> 74 | G5: 1 | H5: 3.78
B7: EURO | C7: INR | D7: Conversion | G7: GGE | H7: Kg | J7: NIST Handbook 44 Appendix D (Pg 3-110) as follows: "1 Gasoline [US] gallon equivalent (GGE) means 2.567 kg (5.660 lb) of natural gas"
B8: 1 | C8: 82 | D8: =B8*C8 -> 82 | G8: 1 | H8: 2.567
B16: DROP DOWN | E16: DASHBOARD TITLE | H16: Gallon Calculation | K16: DASHBOARD TITLE 2
B17: INR | C17: =IF(B17='Cars TCO Dashboard'!$C$15,"Vehicle Purchase Cost (₹)","") -> Vehicle Purchase Cost (₹) | E17: INR | F17: =IF(E17='Cars TCO Dashboard'!$C$15,"TCO BY MODELS AT YEAR 10 (₹ / km)","") -> TCO BY MODELS AT YEAR 10 (₹ / km) | H17: USD | K17: 1 | L17: =IF('Cars TCO Dashboard'!$C$5=Currency!K17,"TCO AT YEAR 1","") -> 
B18: USD | C18: =IF(B18='Cars TCO Dashboard'!$C$15,"Vehicle Purchase Cost ($)","") ->  | E18: USD | F18: =IF(E18='Cars TCO Dashboard'!$C$15,"TCO BY MODELS AT YEAR 10 ($ / mi)","") ->  | H18: Gallon Calculation | I18: =IF('[1]Dynamic Ranges for 2W'!$C$15=H17,'[1]Dynamic Ranges for 2W'!F38*3.78,"-") -> - | K18: 2 | L18: =IF('Cars TCO Dashboard'!$C$5=Currency!K18,"TCO AT YEAR 2","") -> 
B19: EURO | C19: =IF(B19='Cars TCO Dashboard'!$C$15,"Vehicle Purchase Cost (€)","") ->  | E19: EURO | F19: =IF(E19='Cars TCO Dashboard'!$C$15,"TCO BY MODEL AT YEAR 10 (€ / km)","") ->  | K19: 3 | L19: =IF('Cars TCO Dashboard'!$C$5=Currency!K19,"TCO AT YEAR 3","") -> 
K20: 4 | L20: =IF('Cars TCO Dashboard'!$C$5=Currency!K20,"TCO AT YEAR 4","") -> 
B21: INR | C21: =IF(B21='Cars TCO Dashboard'!$C$15,"Tax (₹)","") -> Tax (₹) | E21: INR | F21: =IF(E21='Cars TCO Dashboard'!$C$15,"TCO BREAKDOWN BY COST AT YEAR 10 (₹ / km)","") -> TCO BREAKDOWN BY COST AT YEAR 10 (₹ / km) | K21: 5 | L21: =IF('Cars TCO Dashboard'!$C$5=Currency!K21,"TCO AT YEAR 5","") -> TCO AT YEAR 5
B22: USD | C22: =IF(B22='Cars TCO Dashboard'!$C$15,"Tax ($)","") ->  | E22: USD | F22: =IF(E22='Cars TCO Dashboard'!$C$15,"TCO BREAKDOWN BY COST AT YEAR 10 ($ / mi)","") ->  | K22: 6 | L22: =IF('Cars TCO Dashboard'!$C$5=Currency!K22,"TCO AT YEAR 6","") -> 
B23: EURO | C23: =IF(B23='Cars TCO Dashboard'!$C$15,"Tax (€)","") ->  | E23: EURO | F23: =IF(E23='Cars TCO Dashboard'!$C$15,"TCO BREAKDOWN BY COST AT YEAR 10 (€ / km)","") ->  | K23: 7 | L23: =IF('Cars TCO Dashboard'!$C$5=Currency!K23,"TCO AT YEAR 7","") -> 
K24: 8 | L24: =IF('Cars TCO Dashboard'!$C$5=Currency!K24,"TCO AT YEAR 8","") -> 
B25: INR | C25: =IF(B25='Cars TCO Dashboard'!$C$15,"Insurance cost (₹)","") -> Insurance cost (₹) | E25: INR | F25: =IF(E25='Cars TCO Dashboard'!$C$15,"TOTAL COST OF OWNERSHIP OVER YEARS (₹ / km)","") -> TOTAL COST OF OWNERSHIP OVER YEARS (₹ / km) | K25: 9 | L25: =IF('Cars TCO Dashboard'!$C$5=Currency!K25,"TCO AT YEAR 9","") -> 
B26: USD | C26: =IF(B26='Cars TCO Dashboard'!$C$15,"Insurance cost ($)","") ->  | E26: USD | F26: =IF(E26='Cars TCO Dashboard'!$C$15,"TOTAL COST OF OWNERSHIP OVER YEARS ($ / mi)","") ->  | K26: 10 | L26: =IF('Cars TCO Dashboard'!$C$5=Currency!K26,"TCO AT YEAR 10","") -> 
B27: EURO | C27: =IF(B27='Cars TCO Dashboard'!$C$15,"Insurance cost (€)","") ->  | E27: EURO | F27: =IF(E27='Cars TCO Dashboard'!$C$15,"TOTAL COST OF OWNERSHIP OVER YEARS (€ / km)","") -> 
B29: INR | C29: =IF(B29='Cars TCO Dashboard'!$C$15,"Financial Incentive (₹)","") -> Financial Incentive (₹)
B30: USD | C30: =IF(B30='Cars TCO Dashboard'!$C$15,"Financial Incentive ($)","") -> 
B31: EURO | C31: =IF(B31='Cars TCO Dashboard'!$C$15,"Financial Incentive (€)","") -> 
B33: INR | C33: =IF(B33='Cars TCO Dashboard'!$C$15,"Staff Cost per Month (₹)","") -> Staff Cost per Month (₹)
B34: USD | C34: =IF(B34='Cars TCO Dashboard'!$C$15,"Staff Cost per Month ($)","") -> 
B35: EURO | C35: =IF(B35='Cars TCO Dashboard'!$C$15,"Staff Cost per Month (€)","") -> 
B37: INR | C37: =IF(B37='Cars TCO Dashboard'!$C$15,"Fuel cost (₹/kWh; ₹/kg; ₹/L)","") -> Fuel cost (₹/kWh; ₹/kg; ₹/L)
B38: USD | C38: =IF(B38='Cars TCO Dashboard'!$C$15,"Fuel cost ($/kWh; $/GGE; $/gal)","") -> 
B39: EURO | C39: =IF(B39='Cars TCO Dashboard'!$C$15,"Fuel cost (€/kWh; €/kg; €/L)","") -> 
B41: INR | C41: =IF(B41='Cars TCO Dashboard'!$C$15,"Annual Maintenance Cost (₹)","") -> Annual Maintenance Cost (₹)
B42: USD | C42: =IF(B42='Cars TCO Dashboard'!$C$15,"Annual Maintenance Cost ($)","") -> 
B43: EURO | C43: =IF(B43='Cars TCO Dashboard'!$C$15,"Annual Maintenance Cost (€)","") -> 
B45: INR | C45: =IF(B45='Cars TCO Dashboard'!$C$15,"Financing Component (₹)","") -> Financing Component (₹)
B46: USD | C46: =IF(B46='Cars TCO Dashboard'!$C$15,"Financing Component ($)","") -> 
B47: EURO | C47: =IF(B47='Cars TCO Dashboard'!$C$15,"Financing Component (€)","") -> 
B49: INR | C49: =IF(B49='Cars TCO Dashboard'!$C$15,"Monthly EMI (₹)","") -> Monthly EMI (₹)
B50: USD | C50: =IF(B50='Cars TCO Dashboard'!$C$15,"Monthly EMI ($)","") -> 
B51: EURO | C51: =IF(B51='Cars TCO Dashboard'!$C$15,"Monthly EMI (€)","") -> 
B53: INR | C53: =IF(B53='Cars TCO Dashboard'!$C$15,"Charging Infrastructure Cost (₹)","") -> Charging Infrastructure Cost (₹)
B54: USD | C54: =IF(B54='Cars TCO Dashboard'!$C$15,"Charging Infrastructure Cost ($)","") -> 
B55: EURO | C55: =IF(B55='Cars TCO Dashboard'!$C$15,"Charging Infrastructure Cost (€)","") -> 

Sheet Capital Cost (hidden)
A1: Vehicle Cost | B1: e-4W | C1: CNG-4W | D1: Petrol-4W | E1: Diesel-4W
A2: Purchase Cost (₹) | B2: =VLOOKUP('Cars TCO Dashboard'!$C$15,'Capital Cost'!$A$25:$E$27,2,0) -> 1158000 | C2: =VLOOKUP('Cars TCO Dashboard'!$C$15,'Capital Cost'!$A$25:$E$27,3,0) -> 728000 | D2: =VLOOKUP('Cars TCO Dashboard'!$C$15,'Capital Cost'!$A$25:$E$27,4,0) -> 704800 | E2: =VLOOKUP('Cars TCO Dashboard'!$C$15,'Capital Cost'!$A$25:$E$27,5,0) -> 910700
A3: Tax (₹) | B3: =VLOOKUP('Cars TCO Dashboard'!$C$15,'Capital Cost'!$A$30:$E$32,2,0) -> 66241 | C3: =VLOOKUP('Cars TCO Dashboard'!$C$15,'Capital Cost'!$A$30:$E$32,3,0) -> 80636 | D3: =VLOOKUP('Cars TCO Dashboard'!$C$15,'Capital Cost'!$A$30:$E$32,4,0) -> 70420 | E3: =VLOOKUP('Cars TCO Dashboard'!$C$15,'Capital Cost'!$A$30:$E$32,5,0) -> 80736
A4: Insurance (₹) | B4: =VLOOKUP('Cars TCO Dashboard'!$C$15,'Capital Cost'!$A$35:$E$37,2,0) -> 40706 | C4: =VLOOKUP('Cars TCO Dashboard'!$C$15,'Capital Cost'!$A$35:$E$37,3,0) -> 36139 | D4: =VLOOKUP('Cars TCO Dashboard'!$C$15,'Capital Cost'!$A$35:$E$37,4,0) -> 24000 | E4: =VLOOKUP('Cars TCO Dashboard'!$C$15,'Capital Cost'!$A$35:$E$37,5,0) -> 35676
A5: Financing Component (₹) | B5: =Financing!B17 -> 340133.8388 | C5: =Financing!C17 -> 219665.4817 | D5: =Financing!D17 -> 212665.1532 | E5: =Financing!E17 -> 274793.0689
A6: Total Financial Incentive (₹) | B6: 0 | C6: =VLOOKUP('Cars TCO Dashboard'!$C$15,'Capital Cost'!$A$40:$E$42,3,0) -> 0 | D6: =VLOOKUP('Cars TCO Dashboard'!$C$15,'Capital Cost'!$A$40:$E$42,4,0) -> 0 | E6: =VLOOKUP('Cars TCO Dashboard'!$C$15,'Capital Cost'!$A$40:$E$42,5,0) -> 0
A7: Misc. Cost (₹) | B7: 0 | C7: 0 | D7: 0 | E7: 0
A8: Total Vehicle Cost (₹) | B8: =((B2+B3+B4+B5+B7)-B6) -> 1605080.839 | C8: =((C2+C3+C4+C5+C7)-C6) -> 1064440.482 | D8: =((D2+D3+D4+D5+D7)-D6) -> 1011885.153 | E8: =((E2+E3+E4+E5+E7)-E6) -> 1301905.069
A10: Charging Infrastructure Cost | B10: e-4W | C10: CNG-4W | D10: Petrol-4W | E10: Diesel-4W
A11: No. of Slow Charger (SC) | B11: 0 | C11: 0 | D11: 0 | E11: 0
A12: Cost of SC per unit (₹) | B12: 0 | C12: 0 | D12: 0 | E12: 0
A13: Total Cost of SC (₹) | B13: =B11*B12 -> 0 | C13: =C11*C12 -> 0 | D13: =D11*D12 -> 0 | E13: 0
A14: No. of Fact Charger (FC) | B14: 0 | C14: 0 | D14: 0 | E14: 0
A15: Cost of FC per unit (₹) | B15: 0 | C15: 0 | D15: 0 | E15: 0 | F15: 0
A16: Total Cost of FC (₹) | B16: =B14*B15 -> 0 | C16: =C14*C15 -> 0 | D16: =D14*D15 -> 0 | E16: 0
A17: Installation cost of Charging Infra (₹) | B17: =(B13+B16)*20/100 -> 0 | C17: =(C13+C16)*20/100 -> 0 | D17: =(D13+D16)*20/100 -> 0 | E17: 0
A18: Total incentive for Charging Infra (₹) | B18: 0 | C18: 0 | D18: 0 | E18: 0
A19: Total Cost of Charging Infra (Rs.) | B19: =(B13+B16+B17)-B18 -> 0 | C19: =(C13+C16+C17)-C18 -> 0 | D19: =(D13+D16+D17)-D18 -> 0 | E19: 0
A22: Per Km Capital Cost | B22: =(B8+B19)/Summary!$B$4 -> 39.97710682 | C22: =(C8+C19)/Summary!$B$4 -> 26.51159357 | D22: =(D8+D19)/Summary!$B$4 -> 25.20261901 | E22: =(E8+E19)/Summary!$B$4 -> 32.42602911
A24: PURCHASE COST
A25: INR | B25: =IF($A$25='Cars TCO Dashboard'!$C$15,'Cars TCO Dashboard'!C20,) -> 1158000 | C25: =IF($A$25='Cars TCO Dashboard'!$C$15,'Cars TCO Dashboard'!D20,) -> 728000 | D25: =IF($A$25='Cars TCO Dashboard'!$C$15,'Cars TCO Dashboard'!E20,) -> 704800 | E25: =IF($A$25='Cars TCO Dashboard'!$C$15,'Cars TCO Dashboard'!F20,) -> 910700
A26: USD | B26: =IF($A$26='Cars TCO Dashboard'!$C$15,'Cars TCO Dashboard'!C20*Currency!$C$5,) -> 0 | C26: =IF($A$26='Cars TCO Dashboard'!$C$15,'Cars TCO Dashboard'!D20*Currency!$C$5,) -> 0 | D26: =IF($A$26='Cars TCO Dashboard'!$C$15,'Cars TCO Dashboard'!E20*Currency!$C$5,) -> 0 | E26: =IF($A$26='Cars TCO Dashboard'!$C$15,'Cars TCO Dashboard'!F20*Currency!$C$5,) -> 0
A27: EURO | B27: =IF($A$27='Cars TCO Dashboard'!$C$15,'Cars TCO Dashboard'!C20*Currency!$C$8,) -> 0 | C27: =IF($A$27='Cars TCO Dashboard'!$C$15,'Cars TCO Dashboard'!D20*Currency!$C$8,) -> 0 | D27: =IF($A$27='Cars TCO Dashboard'!$C$15,'Cars TCO Dashboard'!E20*Currency!$C$8,) -> 0 | E27: =IF($A$27='Cars TCO Dashboard'!$C$15,'Cars TCO Dashboard'!F20*Currency!$C$8,) -> 0
A29: TAX
A30: INR | B30: =IF($A$30='Cars TCO Dashboard'!$C$15,'Cars TCO Dashboard'!C21,) -> 66241 | C30: =IF($A$30='Cars TCO Dashboard'!$C$15,'Cars TCO Dashboard'!D21,) -> 80636 | D30: =IF($A$30='Cars TCO Dashboard'!$C$15,'Cars TCO Dashboard'!E21,) -> 70420 | E30: =IF($A$30='Cars TCO Dashboard'!$C$15,'Cars TCO Dashboard'!F21,) -> 80736
A31: USD | B31: =IF($A$31='Cars TCO Dashboard'!$C$15,'Cars TCO Dashboard'!C21*Currency!$C$5,) -> 0 | C31: =IF($A$31='Cars TCO Dashboard'!$C$15,'Cars TCO Dashboard'!D21*Currency!$C$5,) -> 0 | D31: =IF($A$31='Cars TCO Dashboard'!$C$15,'Cars TCO Dashboard'!E21*Currency!$C$5,) -> 0 | E31: =IF($A$31='Cars TCO Dashboard'!$C$15,'Cars TCO Dashboard'!F21*Currency!$C$5,) -> 0
A32: EURO | B32: =IF($A$32='Cars TCO Dashboard'!$C$15,'Cars TCO Dashboard'!C21*Currency!$C$8,) -> 0 | C32: =IF($A$32='Cars TCO Dashboard'!$C$15,'Cars TCO Dashboard'!D21*Currency!$C$8,) -> 0 | D32: =IF($A$32='Cars TCO Dashboard'!$C$15,'Cars TCO Dashboard'!E21*Currency!$C$8,) -> 0 | E32: =IF($A$32='Cars TCO Dashboard'!$C$15,'Cars TCO Dashboard'!F21*Currency!$C$8,) -> 0
A34: INSURANCE
A35: INR | B35: =IF($A$35='Cars TCO Dashboard'!$C$15,'Cars TCO Dashboard'!C22,) -> 40706 | C35: =IF($A$35='Cars TCO Dashboard'!$C$15,'Cars TCO Dashboard'!D22,) -> 36139 | D35: =IF($A$35='Cars TCO Dashboard'!$C$15,'Cars TCO Dashboard'!E22,) -> 24000 | E35: =IF($A$35='Cars TCO Dashboard'!$C$15,'Cars TCO Dashboard'!F22,) -> 35676
A36: USD | B36: =IF($A$36='Cars TCO Dashboard'!$C$15,'Cars TCO Dashboard'!C22*Currency!$C$5,) -> 0 | C36: =IF($A$36='Cars TCO Dashboard'!$C$15,'Cars TCO Dashboard'!D22*Currency!$C$5,) -> 0 | D36: =IF($A$36='Cars TCO Dashboard'!$C$15,'Cars TCO Dashboard'!E22*Currency!$C$5,) -> 0 | E36: =IF($A$36='Cars TCO Dashboard'!$C$15,'Cars TCO Dashboard'!F22*Currency!$C$5,) -> 0
A37: EURO | B37: =IF($A$37='Cars TCO Dashboard'!$C$15,'Cars TCO Dashboard'!C22*Currency!$C$8,) -> 0 | C37: =IF($A$37='Cars TCO Dashboard'!$C$15,'Cars TCO Dashboard'!D22*Currency!$C$8,) -> 0 | D37: =IF($A$37='Cars TCO Dashboard'!$C$15,'Cars TCO Dashboard'!E22*Currency!$C$8,) -> 0 | E37: =IF($A$37='Cars TCO Dashboard'!$C$15,'Cars TCO Dashboard'!F22*Currency!$C$8,) -> 0
A39: INCENTIVE
A40: INR | B40: =IF($A$40='Cars TCO Dashboard'!$C$15,'Cars TCO Dashboard'!C23,) -> 212000 | C40: =IF($A$40='Cars TCO Dashboard'!$C$15,'Cars TCO Dashboard'!D23,) -> 0 | D40: =IF($A$40='Cars TCO Dashboard'!$C$15,'Cars TCO Dashboard'!E23,) -> 0 | E40: =IF($A$40='Cars TCO Dashboard'!$C$15,'Cars TCO Dashboard'!F23,) -> 0
A41: USD | B41: =IF($A$41='Cars TCO Dashboard'!$C$15,'Cars TCO Dashboard'!C23*Currency!$C$5,) -> 0 | C41: =IF($A$41='Cars TCO Dashboard'!$C$15,'Cars TCO Dashboard'!D23*Currency!$C$5,) -> 0 | D41: =IF($A$41='Cars TCO Dashboard'!$C$15,'Cars TCO Dashboard'!E23*Currency!$C$5,) -> 0 | E41: =IF($A$41='Cars TCO Dashboard'!$C$15,'Cars TCO Dashboard'!F23*Currency!$C$5,) -> 0
A42: EURO | B42: =IF($A$42='Cars TCO Dashboard'!$C$15,'Cars TCO Dashboard'!C23*Currency!$C$8,) -> 0 | C42: =IF($A$42='Cars TCO Dashboard'!$C$15,'Cars TCO Dashboard'!D23*Currency!$C$8,) -> 0 | D42: =IF($A$42='Cars TCO Dashboard'!$C$15,'Cars TCO Dashboard'!E23*Currency!$C$8,) -> 0 | E42: =IF($A$42='Cars TCO Dashboard'!$C$15,'Cars TCO Dashboard'!F23*Currency!$C$8,) -> 0

Sheet Operational Cost (hidden)
A1: Staff cost | B1: e-4W | C1: CNG-4W | D1: Petrol-4W | E1: Diesel-4W
A2: Staff Cost (₹ / Month) | B2: =VLOOKUP('Cars TCO Dashboard'!$C$15,'Operational Cost'!$A$35:$B$37,2,0) -> 0 | C2: =VLOOKUP('Cars TCO Dashboard'!$C$15,'Operational Cost'!$A$35:$B$37,2,0) -> 0 | D2: =VLOOKUP('Cars TCO Dashboard'!$C$15,'Operational Cost'!$A$35:$B$37,2,0) -> 0 | E2: =VLOOKUP('Cars TCO Dashboard'!$C$15,'Operational Cost'!$A$35:$B$37,2,0) -> 0
A3: Other Support staff cost (₹ / Month) | B3: 0 | C3: 0 | D3: 0 | E3: 0
A4: Total Annual Staff Cost (₹) | B4: =((B2+B3)*12) -> 0 | C4: =((C2+C3)*12) -> 0 | D4: 0 | E4: 0
A5: Per km Staff Cost | B5: =B4/Summary!$B$4 -> 0 | C5: =C4/Summary!$B$4 -> 0 | D5: =D4/Summary!$B$4 -> 0 | E5: =E4/Summary!$B$4 -> 0
A7: Average Fuel Cost | B7: e-4W | C7: CNG-4W | D7: Petrol-4W | E7: Diesel-4W
A8: Fuel cost (₹/kWh; ₹/kg; ₹/L) | B8: =VLOOKUP('Cars TCO Dashboard'!$C$15,'Operational Cost'!$A$45:$E$47,2,0) -> 6 | C8: =VLOOKUP('Cars TCO Dashboard'!$C$15,'Operational Cost'!$A$45:$E$47,3,0) -> 47 | D8: =VLOOKUP('Cars TCO Dashboard'!$C$15,'Operational Cost'!$A$45:$E$47,4,0) -> 100 | E8: =VLOOKUP('Cars TCO Dashboard'!$C$15,'Operational Cost'!$A$45:$E$47,5,0) -> 88
A9: Mileage (km/kWh; km/L) | B9: ='Cars TCO Dashboard'!C47 -> 8.59 | C9: ='Cars TCO Dashboard'!D47 -> 28.4 | D9: ='Cars TCO Dashboard'!E47 -> 20.1 | E9: ='Cars TCO Dashboard'!F47 -> 25.4
A10: Annual fuel consumption (kWh; L) | B10: =Summary!B4/B9 -> 4674.039581 | C10: =Summary!B4/C9 -> 1413.732394 | D10: =Summary!B4/D9 -> 1997.512438 | E10: =Summary!$B$4/E9 -> 1580.708661
A11: Total Annual Fuel Cost ( ₹ ) | B11: =(B10*B8) -> 28044.23749 | C11: =(C10*C8) -> 66445.42254 | D11: =(D10*D8) -> 199751.2438 | E11: =(E10*E8) -> 139102.3622
A12: Per km Fuel Cost | B12: =B11/Summary!$B$4 -> 0.6984866123 | C12: =C11/Summary!$B$4 -> 1.654929577 | D12: =D11/Summary!$B$4 -> 4.975124378 | E12: =E11/Summary!$B$4 -> 3.464566929
A14: Maintenance Cost | B14: e-4W | C14: CNG-4W | D14: Petrol-4W | E14: Diesel-4W
A15: Annual Maintenance Cost (₹) | B15: =VLOOKUP('Cars TCO Dashboard'!$C$15,'Operational Cost'!$A$40:$E$42,2,0) -> 2600 | C15: =VLOOKUP('Cars TCO Dashboard'!$C$15,'Operational Cost'!$A$40:$E$42,3,0) -> 4699 | D15: =VLOOKUP('Cars TCO Dashboard'!$C$15,'Operational Cost'!$A$40:$E$42,4,0) -> 4699 | E15: =VLOOKUP('Cars TCO Dashboard'!$C$15,'Operational Cost'!$A$40:$E$42,5,0) -> 5261
A16: Other Consumables (₹) | B16: 0 | C16: 0 | D16: 0 | E16: 0
A17: Other Misc. Cost (₹) | B17: 0 | C17: 0 | D17: 0 | E17: 0
A18: Total Annual Maintenance cost (₹) | B18: =(SUM(B15:B17)) -> 2600 | C18: =(SUM(C15:C17)) -> 4699 | D18: =(SUM(D15:D17)) -> 4699 | E18: =(SUM(E15:E17)) -> 5261
A19: Per km Maintenance Cost | B19: =B18/Summary!$B$4 -> 0.06475716065 | C19: =C18/Summary!$B$4 -> 0.1170361146 | D19: =D18/Summary!$B$4 -> 0.1170361146 | E19: =E18/Summary!$B$4 -> 0.1310336239
A21: Battery Replacement Cost | B21: e-4W | C21: CNG-4W | D21: Petrol-4W | E21: Diesel-4W
A22: Number of battery replacements | B22: ='Cars TCO Dashboard'!C46 -> 1 | C22: 0 | D22: 0 | E22: 0
A23: Capacity of battery (kWh) | B23: ='Cars TCO Dashboard'!C45 -> 22 | C23: 0 | D23: 0 | E23: 0
A24: Battery Cost (₹ / kWh) | B24: =Summary!B6*Summary!B7 -> 10001 | C24: =Summary!B6*Summary!B7 -> 10001 | D24: =Summary!B6*Summary!B7 -> 10001
A25: Total battery Cost (₹) | B25: =B24*B23 -> 220022 | C25: =C24*C23 -> 0 | D25: =D24*D23 -> 0 | E25: 0
A26: Battery replacement Charge (₹) | B26: 0 | C26: 0 | D26: 0 | E26: 0
A27: Total battery replacement cost (₹) | B27: =((B25+B26)*B22) -> 220022 | C27: =((C25+C26)*C22) -> 0 | D27: =((D25+D26)*D22) -> 0 | E27: 0
A28: Annual Battery Replacement Cost | B28: =B27/Summary!B3 -> 22002.2 | C28: =C27/Summary!B3 -> 0 | D28: =D27/Summary!B3 -> 0
A29: Per Km Battery Replacement Cost | B29: =B27/Summary!$B$5 -> 0.548 | C29: =C27/Summary!$B$5 -> 0 | D29: =D27/Summary!$B$5 -> 0 | E29: =E27/Summary!$B$5 -> 0
A31: Total Operational Cost | B31: =B27+B18+B11+B4 -> 250666.2375 | C31: =C27+C18+C11+C4 -> 71144.42254 | D31: =D27+D18+D11+D4 -> 204450.2438 | E31: =E27+E18+E11+E4 -> 144363.3622
A32: Per Km Operational Cost | B32: =B29+B19+B12+B5 -> 1.311243773 | C32: =C29+C19+C12+C5 -> 1.771965692 | D32: =D29+D19+D12+D5 -> 5.092160493 | E32: =E29+E19+E12+E5 -> 3.595600553
A34: STAFF COST
A35: INR | B35: =IF($A$35='Cars TCO Dashboard'!$C$15,'Cars TCO Dashboard'!C40,) -> 0
A36: USD | B36: =IF($A$36='Cars TCO Dashboard'!$C$15,'Cars TCO Dashboard'!C40*Currency!C5,) -> 0
A37: EURO | B37: =IF($A$37='Cars TCO Dashboard'!$C$15,'Cars TCO Dashboard'!C40*Currency!C8,) -> 0
A39: ANNUAL MAINTENANCE COST
A40: INR | B40: =IF($A$40='Cars TCO Dashboard'!$C$15,'Cars TCO Dashboard'!C48,) -> 2600 | C40: =IF($A$40='Cars TCO Dashboard'!$C$15,'Cars TCO Dashboard'!D48,) -> 4699 | D40: =IF($A$40='Cars TCO Dashboard'!$C$15,'Cars TCO Dashboard'!E48,) -> 4699 | E40: =IF($A$40='Cars TCO Dashboard'!$C$15,'Cars TCO Dashboard'!F48,) -> 5261
A41: USD | B41: =IF($A$41='Cars TCO Dashboard'!$C$15,'Cars TCO Dashboard'!C48*Currency!$C$5,) -> 0 | C41: =IF($A$41='Cars TCO Dashboard'!$C$15,'Cars TCO Dashboard'!D48*Currency!$C$5,) -> 0 | D41: =IF($A$41='Cars TCO Dashboard'!$C$15,'Cars TCO Dashboard'!E48*Currency!$C$5,) -> 0 | E41: =IF($A$41='Cars TCO Dashboard'!$C$15,'Cars TCO Dashboard'!F48*Currency!$C$5,) -> 0
A42: EURO | B42: =IF($A$42='Cars TCO Dashboard'!$C$15,'Cars TCO Dashboard'!C48*Currency!$C$8,) -> 0 | C42: =IF($A$42='Cars TCO Dashboard'!$C$15,'Cars TCO Dashboard'!D48*Currency!$C$8,) -> 0 | D42: =IF($A$42='Cars TCO Dashboard'!$C$15,'Cars TCO Dashboard'!E48*Currency!$C$8,) -> 0 | E42: =IF($A$42='Cars TCO Dashboard'!$C$15,'Cars TCO Dashboard'!F48*Currency!$C$8,) -> 0
A44: AVERAGE FUEL COST
A45: INR | B45: =IF($A$45='Cars TCO Dashboard'!$C$15,'Cars TCO Dashboard'!C44,) -> 6 | C45: =IF($A$45='Cars TCO Dashboard'!$C$15,'Cars TCO Dashboard'!D44,) -> 47 | D45: =IF($A$45='Cars TCO Dashboard'!$C$15,'Cars TCO Dashboard'!E44,) -> 100 | E45: =IF($A$45='Cars TCO Dashboard'!$C$15,'Cars TCO Dashboard'!F44,) -> 88
A46: USD | B46: =IF($A$46='Cars TCO Dashboard'!$C$15,'Cars TCO Dashboard'!C44*Currency!C5,) -> 0 | C46: =IF($A$46='Cars TCO Dashboard'!$C$15,'Cars TCO Dashboard'!D44*Currency!C5/2.567,) -> 0 | D46: =IF($A$46='Cars TCO Dashboard'!$C$15,'Cars TCO Dashboard'!E44*Currency!C5/3.78,) -> 0 | E46: =IF($A$46='Cars TCO Dashboard'!$C$15,'Cars TCO Dashboard'!F44*Currency!C5/3.78,) -> 0
A47: EURO | B47: =IF($A$47='Cars TCO Dashboard'!$C$15,'Cars TCO Dashboard'!C44*Currency!$C$8,) -> 0 | C47: =IF($A$47='Cars TCO Dashboard'!$C$15,'Cars TCO Dashboard'!D44*Currency!$C$8,) -> 0 | D47: =IF($A$47='Cars TCO Dashboard'!$C$15,'Cars TCO Dashboard'!E44*Currency!$C$8,) -> 0 | E47: =IF($A$47='Cars TCO Dashboard'!$C$15,'Cars TCO Dashboard'!F44*Currency!$C$8,) -> 0

Sheet Financing (hidden)
A1: Vehicle Cost | B1: e-4W | C1: CNG - 4W | D1: Petrol - 4W | E1: Diesel - 4W
A2: Total Cost of Car (₹) | B2: ='Cars TCO Dashboard'!C20-'Cars TCO Dashboard'!C23 -> 946000 | C2: ='Cars TCO Dashboard'!D20 -> 728000 | D2: ='Cars TCO Dashboard'!E20 -> 704800 | E2: ='Cars TCO Dashboard'!F20 -> 910700
A3: Share of Operator (%) | B3: =100%-B6 -> 0.9 | C3: =100%-C6 -> 0.9 | D3: 0.9 | E3: 0.9
A4: Share of Operator (₹) | B4: =B3*B2 -> 851400 | C4: =C3*C2 -> 655200 | D4: =D3*D2 -> 634320 | E4: =E3*E2 -> 819630
A5: Processing Fees | B5: =IF(B8=0,0,IF(B4*0.5%>500,B4*0.5%,500)) -> 4257 | C5: =IF(C8=0,0,IF(C4*0.5%>500,C4*0.5%,500)) -> 3276 | D5: 3171.6 | E5: 4098.15
A6: Equity % | B6: ='Cars TCO Dashboard'!C31 -> 0.1 | C6: ='Cars TCO Dashboard'!D31 -> 0.1 | D6: ='Cars TCO Dashboard'!E31 -> 0.1 | E6: ='Cars TCO Dashboard'!F31 -> 0.1
A7: Equity (₹) | B7: =(B6*B2) -> 94600 | C7: =(C6*C2) -> 72800 | D7: =(D6*D2) -> 70480 | E7: =(E6*E2) -> 91070
A8: Loan amount (₹) | B8: =B4 -> 851400 | C8: =C4 -> 655200 | D8: =D4 -> 634320 | E8: =E4 -> 819630
A9: Interest rate (%) | B9: ='Cars TCO Dashboard'!C30 -> 0.1 | C9: ='Cars TCO Dashboard'!D30 -> 0.085 | D9: ='Cars TCO Dashboard'!E30 -> 0.085 | E9: ='Cars TCO Dashboard'!F30 -> 0.085
A10: Term of payment (yrs) | B10: ='Cars TCO Dashboard'!C29 -> 7 | C10: ='Cars TCO Dashboard'!D29 -> 7 | D10: ='Cars TCO Dashboard'!E29 -> 7 | E10: ='Cars TCO Dashboard'!F29 -> 7
A11: No of EMI (Yearly) | B11: =B10*12 -> 84 | C11: =C10*12 -> 84 | D11: 84 | E11: 84
A12: Monthly EMI Loan (Rs.) | B12: =((PMT(B9/12,B10*12,-B8))+(B5/B11)) -> 14184.92665 | C12: =((PMT(C9/12,C10*12,-C8))+(C5/C11)) -> 10415.06526 | D12: 10083.15659 | E12: 13028.84606
A13: Total interest paid | B13: =(B12*B10*12)-B8 -> 340133.8388 | C13: =(C12*C10*12)-C8 -> 219665.4817 | D13: 212665.1532 | E13: 274793.0689
A14: Yearly Interest Paid | B14: =B13/B10 -> 48590.54839 | C14: =C13/C10 -> 31380.7831 | D14: =D13/D10 -> 30380.73617 | E14: =E13/E10 -> 39256.15271
A15: EMI per KM (Rs.) | B15: =B14/Summary!B4 -> 1.210225365 | C15: =C14/Summary!B4 -> 0.7815886202 | D15: =D14/Summary!B4 -> 0.756680851 | E15: =E14/Summary!B4 -> 0.9777373028
A17: Total Interest Paid | B17: =VLOOKUP('Cars TCO Dashboard'!$C$15,Financing!$A$22:$E$24,2,0) -> 340133.8388 | C17: =VLOOKUP('Cars TCO Dashboard'!$C$15,Financing!$A$22:$E$24,3,0) -> 219665.4817 | D17: =VLOOKUP('Cars TCO Dashboard'!$C$15,Financing!$A$22:$E$24,4,0) -> 212665.1532 | E17: =VLOOKUP('Cars TCO Dashboard'!$C$15,Financing!$A$22:$E$24,5,0) -> 274793.0689
A18: (Used for Dashboard Calc.)
A21: YEARLY INTEREST
A22: INR | B22: =IF($A$22='Cars TCO Dashboard'!$C$15,Financing!B13,) -> 340133.8388 | C22: =IF($A$22='Cars TCO Dashboard'!$C$15,Financing!C13,) -> 219665.4817 | D22: =IF($A$22='Cars TCO Dashboard'!$C$15,Financing!D13,) -> 212665.1532 | E22: =IF($A$22='Cars TCO Dashboard'!$C$15,Financing!E13,) -> 274793.0689
A23: USD | B23: =IF($A$23='Cars TCO Dashboard'!$C$15,Financing!B13*Currency!$C$5,) -> 0 | C23: =IF($A$23='Cars TCO Dashboard'!$C$15,Financing!C13*Currency!$C$5,) -> 0 | D23: =IF($A$23='Cars TCO Dashboard'!$C$15,Financing!D13*Currency!$C$5,) -> 0 | E23: =IF($A$23='Cars TCO Dashboard'!$C$15,Financing!E13*Currency!$C$5,) -> 0
A24: EURO | B24: =IF($A$24='Cars TCO Dashboard'!$C$15,Financing!B13*Currency!$C$8,) -> 0 | C24: =IF($A$24='Cars TCO Dashboard'!$C$15,Financing!C13*Currency!$C$8,) -> 0 | D24: =IF($A$24='Cars TCO Dashboard'!$C$15,Financing!D13*Currency!$C$8,) -> 0 | E24: =IF($A$24='Cars TCO Dashboard'!$C$15,Financing!E13*Currency!$C$8,) -> 0

Sheet TCO_1 (hidden)
A1: Parameter | B1: Unit | C1: e-4W | D1: CNG-4W | E1: Petrol-4W | F1: Diesel-4W
A2: Discount rate value | B2: - | C2: =Summary!B10 -> 0.1 | D2: =Summary!C10 -> 0.1 | E2: =Summary!D10 -> 0.1 | F2: =Summary!E10 -> 0.1
A3: Resale rate value | B3: - | C3: =Summary!B11 -> 0.2 | D3: =Summary!C11 -> 0.1 | E3: =Summary!D11 -> 0.1 | F3: =Summary!E11 -> 0.1
A4: Capital recovery factor (CRF)_N | B4: - | C4: =C2*(1+C2)^Summary!B3 -> 0.259374246 | D4: =D2*(1+D2)^Summary!B3 -> 0.259374246 | E4: =E2*(1+E2)^Summary!B3 -> 0.259374246 | F4: =F2*(1+F2)^Summary!B3 -> 0.259374246
A5: Capital recovery factor (CRF)_D | B5: - | C5: =((1+C2)^Summary!B3)-1 -> 1.59374246 | D5: =(1+D2)^Summary!B3-1 -> 1.59374246 | E5: =(1+E2)^Summary!B3-1 -> 1.59374246 | F5: =(1+F2)^Summary!B3-1 -> 1.59374246
A6: CRF | B6: - | C6: =C4/C5 -> 0.1627453949 | D6: =D4/D5 -> 0.1627453949 | E6: =E4/E5 -> 0.1627453949 | F6: =F4/F5 -> 0.1627453949
A7: Present value factor (PVF) | B7: - | C7: =1/(1+C2)^10 -> 0.3855432894 | D7: =1/(1+D2)^Summary!B3 -> 0.3855432894 | E7: =1/(1+E2)^Summary!B3 -> 0.3855432894 | F7: =1/(1+F2)^Summary!B3 -> 0.3855432894
A8: Residual value (RV) | B8: ₹ | C8: =Summary!B14*C3 -> 321016.1678 | D8: =Summary!C14*D3 -> 106444.0482 | E8: =Summary!D14*E3 -> 101188.5153 | F8: =Summary!E14*F3 -> 130190.5069
A9: Annual Travel Distance | B9: km | C9: =Summary!$B$4 -> 40150 | D9: =Summary!$B$4 -> 40150 | E9: =Summary!$B$4 -> 40150 | F9: =Summary!$B$4 -> 40150
A10: Capex component | B10: ₹ | C10: =((Summary!B19-(C8*C7))*C6) -> 206575.205 | D10: =(Summary!C19-(D8*D7))*D6 -> 166553.9127 | E10: =(Summary!D19-(E8*E7))*E6 -> 158330.5355 | F10: =(Summary!E19-(F8*F7))*F6 -> 203710.1998
A11: TCO | B11: ₹/km | C11: =(C10+L22)/C9 -> 5.950788588 | D11: =(D10+L23)/D9 -> 5.237087934 | E11: =(E10+L24)/E9 -> 7.07238754 | F11: =(F10+L25)/F9 -> 7.283069401
A13: Opex / year
A14: Vehicle type | B14: Unit | C14: 1 | D14: =C14+1 -> 2 | E14: 3 | F14: 4 | G14: 5 | H14: 6 | I14: 7 | J14: 8 | K14: 9 | L14: 10 | M14: Total
A15: e-4W | B15: ₹ | C15: =Summary!$B$27/(1+$C$2)^C14 -> 47860.39771 | D15: =Summary!$B$27/(1+$C$2)^D14 -> 43509.45247 | E15: =Summary!$B$27/(1+$C$2)^E14 -> 39554.0477 | F15: =Summary!$B$27/(1+$C$2)^F14 -> 35958.22518 | G15: =Summary!$B$27/(1+$C$2)^G14 -> 32689.29562 | H15: =Summary!$B$27/(1+$C$2)^H14 -> 29717.54147 | I15: =Summary!$B$27/(1+$C$2)^I14 -> 27015.94679 | J15: =Summary!$B$27/(1+$C$2)^J14 -> 24559.95163 | K15: =Summary!$B$27/(1+$C$2)^K14 -> 22327.22875 | L15: =Summary!$B$27/(1+$C$2)^L14 -> 20297.48068 | M15: =SUM(C15:L15)/Summary!B3 -> 32348.9568
A16: CNG-4W | B16: ₹ | C16: =Summary!$C$27/(1+$D$2)^C14 -> 64676.74776 | D16: =Summary!$C$27/(1+$D$2)^D14 -> 58797.04342 | E16: =Summary!$C$27/(1+$D$2)^E14 -> 53451.85765 | F16: =Summary!$C$27/(1+$D$2)^F14 -> 48592.59787 | G16: =Summary!$C$27/(1+$D$2)^G14 -> 44175.08897 | H16: =Summary!$C$27/(1+$D$2)^H14 -> 40159.17179 | I16: =Summary!$C$27/(1+$D$2)^I14 -> 36508.33799 | J16: =Summary!$C$27/(1+$D$2)^J14 -> 33189.39817 | K16: =Summary!$C$27/(1+$D$2)^K14 -> 30172.18016 | L16: =Summary!$C$27/(1+$D$2)^L14 -> 27429.25469 | M16: =SUM(C16:L16)/Summary!B3 -> 43715.16785
A17: Petrol-4W | B17: ₹ | C17: =Summary!$D$27/(1+$E$2)^C14 -> 185863.858 | D17: =Summary!$D$27/(1+$E$2)^D14 -> 168967.1436 | E17: =Summary!$D$27/(1+$E$2)^E14 -> 153606.4942 | F17: =Summary!$D$27/(1+$E$2)^F14 -> 139642.2675 | G17: =Summary!$D$27/(1+$E$2)^G14 -> 126947.5159 | H17: =Summary!$D$27/(1+$E$2)^H14 -> 115406.8326 | I17: =Summary!$D$27/(1+$E$2)^I14 -> 104915.3024 | J17: =Summary!$D$27/(1+$E$2)^J14 -> 95377.54761 | K17: =Summary!$D$27/(1+$E$2)^K14 -> 86706.86146 | L17: =Summary!$D$27/(1+$E$2)^L14 -> 78824.41951 | M17: =SUM(C17:L17)/Summary!B3 -> 125625.8243
A18: Diesel-4W | B18: ₹ | C18: =Summary!$E$27/(1+$F$2)^C14 -> 131239.4202 | D18: =Summary!$E$27/(1+$F$2)^D14 -> 119308.5638 | E18: =Summary!$E$27/(1+$F$2)^E14 -> 108462.3307 | F18: =Summary!$E$27/(1+$F$2)^F14 -> 98602.11885 | G18: =Summary!$E$27/(1+$F$2)^G14 -> 89638.28986 | H18: =Summary!$E$27/(1+$F$2)^H14 -> 81489.35442 | I18: =Summary!$E$27/(1+$F$2)^I14 -> 74081.23129 | J18: =Summary!$E$27/(1+$F$2)^J14 -> 67346.5739 | K18: =Summary!$E$27/(1+$F$2)^K14 -> 61224.15809 | L18: =Summary!$E$27/(1+$F$2)^L14 -> 55658.32554 | M18: =SUM(C18:L18)/Summary!B3 -> 88705.03667
A20: Opex Sum
A21: Vehicle type | B21: Unit | C21: 1 | D21: =C21+1 -> 2 | E21: 3 | F21: 4 | G21: 5 | H21: 6 | I21: 7 | J21: 8 | K21: 9 | L21: 10
A22: e-4W | B22: ₹/km | C22: =(1/C21)*SUM($C$15:C15) -> 47860.39771 | D22: =(1/D21)*SUM($C$15:D15) -> 45684.92509 | E22: =(1/E21)*SUM($C$15:E15) -> 43641.29929 | F22: =(1/F21)*SUM($C$15:F15) -> 41720.53076 | G22: =(1/G21)*SUM($C$15:G15) -> 39914.28374 | H22: =(1/H21)*SUM($C$15:H15) -> 38214.82669 | I22: =(1/I21)*SUM($C$15:I15) -> 36614.98671 | J22: =(1/J21)*SUM($C$15:J15) -> 35108.10732 | K22: =(1/K21)*SUM($C$15:K15) -> 33688.0097 | L22: =(1/L21)*SUM($C$15:L15) -> 32348.9568
A23: CNG-4W | B23: ₹/km | C23: =(1/C21)*SUM($C$16:C16) -> 64676.74776 | D23: =(1/D21)*SUM($C$16:D16) -> 61736.89559 | E23: =(1/E21)*SUM($C$16:E16) -> 58975.21628 | F23: =(1/F21)*SUM($C$16:F16) -> 56379.56167 | G23: =(1/G21)*SUM($C$16:G16) -> 53938.66713 | H23: =(1/H21)*SUM($C$16:H16) -> 51642.08458 | I23: =(1/I21)*SUM($C$16:I16) -> 49480.12078 | J23: =(1/J21)*SUM($C$16:J16) -> 47443.78045 | K23: =(1/K21)*SUM($C$16:K16) -> 45524.71375 | L23: =(1/L21)*SUM($C$16:L16) -> 43715.16785
A24: Petrol-4W | B24: ₹/km | C24: =(1/C21)*SUM($C$17:C17) -> 185863.858 | D24: =(1/D21)*SUM($C$17:D17) -> 177415.5008 | E24: =(1/E21)*SUM($C$17:E17) -> 169479.1653 | F24: =(1/F21)*SUM($C$17:F17) -> 162019.9408 | G24: =(1/G21)*SUM($C$17:G17) -> 155005.4558 | H24: =(1/H21)*SUM($C$17:H17) -> 148405.6853 | I24: =(1/I21)*SUM($C$17:I17) -> 142192.7734 | J24: =(1/J21)*SUM($C$17:J17) -> 136340.8702 | K24: =(1/K21)*SUM($C$17:K17) -> 130825.9804 | L24: =(1/L21)*SUM($C$17:L17) -> 125625.8243
A25: Diesel-4W | B25: ₹/km | C25: =(1/C21)*SUM($C$18:C18) -> 131239.4202 | D25: =(1/D21)*SUM($C$18:D18) -> 125273.992 | E25: =(1/E21)*SUM($C$18:E18) -> 119670.1049 | F25: =(1/F21)*SUM($C$18:F18) -> 114403.1084 | G25: =(1/G21)*SUM($C$18:G18) -> 109450.1447 | H25: =(1/H21)*SUM($C$18:H18) -> 104790.013 | I25: =(1/I21)*SUM($C$18:I18) -> 100403.0442 | J25: =(1/J21)*SUM($C$18:J18) -> 96270.98538 | K25: =(1/K21)*SUM($C$18:K18) -> 92376.89346 | L25: =(1/L21)*SUM($C$18:L18) -> 88705.03667
A27: TCO / year
A28: Vehicle type | B28: Unit | C28: 1 | D28: =C28+1 -> 2 | E28: 3 | F28: 4 | G28: 5 | H28: 6 | I28: 7 | J28: 8 | K28: 9 | L28: 10 | M28: Average TCO
A29: PVF | B29: - | C29: =1/(1+$C$2)^C28 -> 0.9090909091 | D29: =1/(1+$C$2)^D28 -> 0.826446281 | E29: 0.7513148009 | F29: 0.6830134554 | G29: 0.6209213231 | H29: 0.5644739301 | I29: 0.5131581182 | J29: 0.4665073802 | K29: 0.4240976184 | L29: 0.3855432894
A30: CRF | B30: - | C30: =($C$2*(1+$C$2)^C28)/((1+$C$2)^C28-1) -> 1.1 | D30: =($C$2*(1+$C$2)^D28)/((1+$C$2)^D28-1) -> 0.5761904762 | E30: 0.4021148036 | F30: 0.3154708037 | G30: 0.2637974808 | H30: 0.2296073804 | I30: 0.2054054997 | J30: 0.1874440176 | K30: 0.1736405391 | L30: 0.1627453949
A31: e-4W | B31: ₹/km | C31: =(((Summary!$B$19-($C$8*C29))*C30)+C22)/($C$9) -> 31.36321675 | D31: =(((Summary!$B$19-($C$8*D29))*D30)+D22)/($C$9) -> 17.32254035 | E31: =(((Summary!$B$19-($C$8*E29))*E30)+E22)/($C$9) -> 12.62356141 | F31: =(((Summary!$B$19-($C$8*F29))*F30)+F22)/($C$9) -> 10.26219803 | G31: =(((Summary!$B$19-($C$8*G29))*G30)+G22)/($C$9) -> 8.837456039 | H31: =(((Summary!$B$19-($C$8*H29))*H30)+H22)/($C$9) -> 7.882201847 | I31: =(((Summary!$B$19-($C$8*I29))*I30)+I22)/($C$9) -> 7.196129089 | J31: =(((Summary!$B$19-($C$8*J29))*J30)+J22)/($C$9) -> 6.67899958 | K31: =(((Summary!$B$19-($C$8*K29))*K30)+K22)/($C$9) -> 6.275056385 | L31: =(((Summary!$B$19-($C$8*L29))*L30)+L22)/($C$9) -> 5.950788588 | M31: =SUM(C31:L31)/$L$28 -> 11.43921481
A32: PVF | B32: - | C32: =1/(1+$D$2)^C28 -> 0.9090909091 | D32: =1/(1+$D$2)^D28 -> 0.826446281 | E32: 0.7513148009 | F32: 0.6830134554 | G32: 0.6209213231 | H32: 0.5644739301 | I32: 0.5131581182 | J32: 0.4665073802 | K32: 0.4240976184 | L32: 0.3855432894
A33: CRF | B33: - | C33: =($D$2*(1+$D$2)^C28)/((1+$D$2)^C28-1) -> 1.1 | D33: =($D$2*(1+$D$2)^D28)/((1+$D$2)^D28-1) -> 0.5761904762 | E33: 0.4021148036 | F33: 0.3154708037 | G33: 0.2637974808 | H33: 0.2296073804 | I33: 0.2054054997 | J33: 0.1874440176 | K33: 0.1736405391 | L33: 0.1627453949
A34: CNG-4W | B34: ₹/km | C34: =(((Summary!$C$19-($D$8*C32))*C33)+C23)/($D$9) -> 28.12247147 | D34: =(((Summary!$C$19-($D$8*D32))*D33)+D23)/($D$9) -> 15.55092706 | E34: =(((Summary!$C$19-($D$8*E32))*E33)+E23)/($D$9) -> 11.32862189 | F34: =(((Summary!$C$19-($D$8*F32))*F33)+F23)/($D$9) -> 9.196609498 | G34: =(((Summary!$C$19-($D$8*G32))*G33)+G23)/($D$9) -> 7.902867191 | H34: =(((Summary!$C$19-($D$8*H32))*H33)+H23)/($D$9) -> 7.029876486 | I34: =(((Summary!$C$19-($D$8*I32))*I33)+I23)/($D$9) -> 6.398561936 | J34: =(((Summary!$C$19-($D$8*J32))*J33)+J23)/($D$9) -> 5.919274859 | K34: =(((Summary!$C$19-($D$8*K32))*K33)+K23)/($D$9) -> 5.542120441 | L34: =(((Summary!$C$19-($D$8*L32))*L33)+L23)/($D$9) -> 5.237087934 | M34: =SUM(C34:L34)/$L$28 -> 10.22284188
A35: PVF | B35: - | C35: =1/(1+$E$2)^C28 -> 0.9090909091 | D35: =1/(1+$E$2)^D28 -> 0.826446281 | E35: 0.7513148009 | F35: 0.6830134554 | G35: 0.6209213231 | H35: 0.5644739301 | I35: 0.5131581182 | J35: 0.4665073802 | K35: 0.4240976184 | L35: 0.3855432894
A36: CRF | B36: - | C36: =($E$2*(1+$E$2)^C28)/((1+$E$2)^C28-1) -> 1.1 | D36: =($E$2*(1+$E$2)^D28)/((1+$E$2)^D28-1) -> 0.5761904762 | E36: 0.4021148036 | F36: 0.3154708037 | G36: 0.2637974808 | H36: 0.2296073804 | I36: 0.2054054997 | J36: 0.1874440176 | K36: 0.1736405391 | L36: 0.1627453949
A37: Petrol-4W | B37: ₹/km | C37: =(((Summary!$D$19-($E$8*C35))*C36)+C24)/($E$9) -> 29.83185582 | D37: =(((Summary!$D$19-($E$8*D35))*D36)+D24)/($E$9) -> 17.74020129 | E37: =(((Summary!$D$19-($E$8*E35))*E36)+E24)/($E$9) -> 13.59408758 | F37: =(((Summary!$D$19-($E$8*F35))*F36)+F24)/($E$9) -> 11.44301351 | G37: =(((Summary!$D$19-($E$8*G35))*G36)+G24)/($E$9) -> 10.09623378 | H37: =(((Summary!$D$19-($E$8*H35))*H36)+H24)/($E$9) -> 9.156343864 | I37: =(((Summary!$D$19-($E$8*I35))*I36)+I24)/($E$9) -> 8.452645653 | J37: =(((Summary!$D$19-($E$8*J35))*J36)+J24)/($E$9) -> 7.899485886 | K37: =(((Summary!$D$19-($E$8*K35))*K36)+K24)/($E$9) -> 7.4490333 | L37: =(((Summary!$D$19-($E$8*L35))*L36)+L24)/($E$9) -> 7.07238754 | M37: =SUM(C37:L37)/$L$28 -> 12.27352882
A38: PVF | B38: - | C38: =1/(1+$F$2)^C28 -> 0.9090909091 | D38: =1/(1+$F$2)^D28 -> 0.826446281 | E38: 0.7513148009 | F38: 0.6830134554 | G38: 0.6209213231 | H38: 0.5644739301 | I38: 0.5131581182 | J38: 0.4665073802 | K38: 0.4240976184 | L38: 0.3855432894
A39: CRF | B39: - | C39: =($F$2*(1+$F$2)^C28)/((1+$F$2)^C28-1) -> 1.1 | D39: =($F$2*(1+$F$2)^D28)/((1+$F$2)^D28-1) -> 0.5761904762 | E39: 0.4021148036 | F39: 0.3154708037 | G39: 0.2637974808 | H39: 0.2296073804 | I39: 0.2054054997 | J39: 0.1874440176 | K39: 0.1736405391 | L39: 0.1627453949
A40: Diesel-4W | B40: ₹/km | C40: =(((Summary!$E$19-($F$8*C38))*C39)+C25)/($F$9) -> 35.69475689 | D40: =(((Summary!$E$19-($F$8*D38))*D39)+D25)/($F$9) -> 20.25962177 | E40: =(((Summary!$E$19-($F$8*E38))*E39)+E25)/($F$9) -> 15.03992345 | F40: =(((Summary!$E$19-($F$8*F38))*F39)+F25)/($F$9) -> 12.3801717 | G40: =(((Summary!$E$19-($F$8*G38))*G39)+G25)/($F$9) -> 10.74880561 | H40: =(((Summary!$E$19-($F$8*H38))*H39)+H25)/($F$9) -> 9.634953295 | I40: =(((Summary!$E$19-($F$8*I38))*I39)+I25)/($F$9) -> 8.819395018 | J40: =(((Summary!$E$19-($F$8*J38))*J39)+J25)/($F$9) -> 8.192301894 | K40: =(((Summary!$E$19-($F$8*K38))*K39)+K25)/($F$9) -> 7.692480507 | L40: =(((Summary!$E$19-($F$8*L38))*L39)+L25)/($F$9) -> 7.283069401 | M40: =SUM(C40:L40)/$L$28 -> 13.57454795

Sheet Plots (hidden)
A1: Model | B1: TCO
A2: e-Car | B2: =[2]TCO_1!C11 -> 3.17687645
A3: CNG-Car | B3: =[2]TCO_1!D11 -> 3.101226971
A4: Petrol-Car | B4: =[2]TCO_1!E11 -> 4.493872651
A5: Diesel-Car | B5: =[2]TCO_1!F11 -> 4.227862396
A10: Operational Years | B10: e-Car | C10: CNG-Car | D10: Petrol-Car | E10: Diesel-Car
A11: Year 1 | B11: =[2]TCO_1!C31 -> 14.99105291 | C11: =[2]TCO_1!C34 -> 13.94963577 | D11: =[2]TCO_1!C37 -> 16.9277841 | E11: =[2]TCO_1!C40 -> 17.9812742
A12: Year 2 | B12: =[2]TCO_1!D31 -> 8.568331698 | C12: =[2]TCO_1!D34 -> 8.126632682 | D12: =[2]TCO_1!D37 -> 10.46072333 | E12: =[2]TCO_1!D40 -> 10.66423715
A13: Year 3 | B13: =[2]TCO_1!E31 -> 6.397295394 | C13: =[2]TCO_1!E34 -> 6.142701009 | D13: =[2]TCO_1!E37 -> 8.213527409 | E13: =[2]TCO_1!E40 -> 8.157460049
A14: Year 4 | B14: =[2]TCO_1!F31 -> 5.291649699 | C14: =[2]TCO_1!F34 -> 5.121838955 | D14: =[2]TCO_1!F37 -> 7.027948363 | E14: =[2]TCO_1!F40 -> 6.858337579
A15: Year 5 | B15: =[2]TCO_1!G31 -> 4.613947779 | C15: =[2]TCO_1!G34 -> 4.488598468 | D15: =[2]TCO_1!G37 -> 6.271844599 | E15: =[2]TCO_1!G40 -> 6.045969048
A16: Year 6 | B16: =[2]TCO_1!H31 -> 4.151564567 | C16: =[2]TCO_1!H34 -> 4.050975535 | D16: =[2]TCO_1!H37 -> 5.73412915 | E16: =[2]TCO_1!H40 -> 5.479766187
A17: Year 7 | B17: =[2]TCO_1!I31 -> 3.813263475 | C17: =[2]TCO_1!I34 -> 3.726535966 | D17: =[2]TCO_1!I37 -> 5.324045156 | E17: =[2]TCO_1!I40 -> 5.056394962
A18: Year 8 | B18: =[2]TCO_1!J31 -> 3.55333725 | C18: =[2]TCO_1!J34 -> 3.473945733 | D18: =[2]TCO_1!J37 -> 4.995982472 | E18: =[2]TCO_1!J40 -> 4.724009309
A19: Year 9 | B19: =[2]TCO_1!K31 -> 3.346320926 | C19: =[2]TCO_1!K34 -> 3.270146846 | D19: =[2]TCO_1!K37 -> 4.724414728 | E19: =[2]TCO_1!K40 -> 4.45366099
A20: Year 10 | B20: =[2]TCO_1!L31 -> 3.17687645 | C20: =[2]TCO_1!L34 -> 3.101226971 | D20: =[2]TCO_1!L37 -> 4.493872651 | E20: =[2]TCO_1!L40 -> 4.227862396
B24: e-Car | C24: CNG-Car | D24: Petrol-Car | E24: Diesel-Car
A25: Total Fixed
A26: Total Variable
A27: Total TCO
A31: Cost Components | B31: e-4W (Mahindra E-Verito D6) | C31: CNG-4W (Ford Aspire Trend plus) | D31: Petrol-4W (Ford Aspire Titanium plus) | E31: Diesel-4W (Mahindra Verito D6)
A32: Fixed | B32: =[2]Summary!B19 -> 1052947 | C32: =[2]Summary!C19 -> 844775 | D32: =[2]Summary!D19 -> 927591 | E32: =[2]Summary!E19 -> 1058174
A33: Maintenance | B33: =[2]Summary!B23 -> 22118 | C33: =[2]Summary!C23 -> 22568 | D33: =[2]Summary!D23 -> 22568 | E33: =[2]Summary!E23 -> 24779
A34: Battery Replacement | B34: =[2]Summary!B24 -> 30104 | C34: =[2]Summary!C24 -> 0 | D34: =[2]Summary!D24 -> 0 | E34: =[2]Summary!E24 -> 0
A35: Fuel | B35: =[2]Summary!B25 -> 48952.94118 | C35: =[2]Summary!C25 -> 112327.4648 | D35: =[2]Summary!D25 -> 248417.9104 | E35: =[2]Summary!E25 -> 182931.1024
B36: e-4W (Mahindra E-Verito D6) | C36: CNG-4W (Ford Aspire Trend plus) | D36: Petrol-4W (Ford Aspire Titanium plus) | E36: Diesel-4W (Mahindra Verito D6)
A37: Fixed | B37: =B32/(SUM(B32:B35)) -> 0.9123360041 | C37: =C32/(SUM(C32:C35)) -> 0.8623052653 | D37: =D32/(SUM(D32:D35)) -> 0.7739102864 | E37: =E32/(SUM(E32:E35)) -> 0.8359169675
A38: Maintenance | B38: =B33/(SUM(B32:B35)) -> 0.01916435275 | C38: =C33/(SUM(C32:C35)) -> 0.02303631763 | D38: =D33/(SUM(D32:D35)) -> 0.01882899612 | E38: =E33/(SUM(E32:E35)) -> 0.0195744618
A39: Battery Replacement | B39: =B34/(SUM(B32:B35)) -> 0.02608389887 | C39: =C34/(SUM(C32:C35)) -> 0 | D39: =D34/(SUM(D32:D35)) -> 0 | E39: =E34/(SUM(E32:E35)) -> 0
A40: Fuel | B40: =B35/(SUM(B32:B35)) -> 0.04241574432 | C40: =C35/(SUM(C32:C35)) -> 0.1146584171 | D40: =D35/(SUM(D32:D35)) -> 0.2072607175 | E40: =E35/(SUM(E32:E35)) -> 0.1445085707
B42: =SUM(B37:B41) -> 1 | C42: =SUM(C37:C41) -> 1 | D42: =SUM(D37:D41) -> 1 | E42: =SUM(E37:E41) -> 1

Sheet References (hidden)
B2: Assumption | F2: Source
B3: Life of Vehicle | F3: Assumed
B4: Annual driving distance | F4: Assumed
B5: Total distance travelled | F5: Assumed
B6: LIB cost | F6: https://bnef.turtl.co/story/evo2018?teaser=true | K6: BNEF EV Outlook 2018 ($200/kWh)
B7: Discount rate | F7: Assumed
B8: Resale value | F8: Assumed
B9: Purchase cost (e-4W) + Tax + Insurance | F9: https://www.zigwheels.com/newcars/Mahindra/e-verito/on-road-price-delhi
B10: Purchase cost (CNG-4W) + Tax + Insurance | F10: https://www.zigwheels.com/newcars/Hyundai/aura/on-road-price-delhi | N10: (Refer Hundai Aura S CNG Model)
B11: Purchase cost (Petrol-4W) + Tax + Insurance | F11: https://www.zigwheels.com/newcars/Hyundai/aura/on-road-price-delhi | N11: (Refer Hundai Aura SX Plus AMT Petrol Model)
B12: Purchase cost (Diesel-4W) + Tax + Insurance | F12: https://www.zigwheels.com/newcars/Hyundai/aura/on-road-price-delhi | N12: (Refer Hundai Aura SX Plus AMT Diesel Model)
B13: Fuel cost (e-4W) | F13: http://transport.delhi.gov.in/sites/default/files/All-PDF/Electric%20Policy%202018.pdf
B14: Fuel cost (CNG-4W) | F14: To be added by Parveen
B15: Fuel cost (Petrol-4W) | F15: https://www.iocl.com/Product_PreviousPrice/PetrolPreviousPriceDynamic.aspx
B16: Fuel cost (Diesel-4W) | F16: https://www.iocl.com/Product_PreviousPrice/DieselPreviousPriceDynamic.aspx
B17: Mileage (e-4W) | F17: https://www.mahindraelectric.com/vehicles/everito/ | L17: Battery capacity: 21.2 kWh; Range: 181 km
B18: Mileage (CNG-4W) | F18: https://www.zigwheels.com/newcars/Ford/figo-aspire/trend-plus-cng#leadform
B19: Mileage (Petrol-4W) | F19: https://www.carwale.com/hyundai-cars/aura/mileage/
B20: Mileage (Diesel-4W) | F20: To be added by Parveen
B21: Annual Maintenance cost (e-4W) | F21: To be added by Parveen
B22: Annual Maintenance cost (CNG-4W) | F22: To be added by Parveen
B23: Annual Maintenance cost (Petrol-4W) | F23: To be added by Parveen
B24: Annual Maintenance cost (Diesel-4W) | F24: To be added by Parveen
B25: Misc cost (e-4W) | F25: To be added by Parveen
B26: Misc cost (CNG-4W) | F26: To be added by Parveen
B27: Misc cost (Petrol-4W) | F27: To be added by Parveen
B28: Misc cost (Diesel-4W) | F28: To be added by Parveen
B29: No. of battery replacements | F29: http://www.mahindraelectric.com/vehicles/everito/
B30: Capacity of the battery | F30: http://www.mahindraelectric.com/vehicles/everito/
B32: e-4W (Mahindra E-Verito D6)
B33: CNG-4W (Ford Aspire Trend plus)
B34: Petrol-4W (Ford Aspire Titanium plus)
B35: Diesel-4W (Mahindra Verito D6)
